bitfinex-derivatives/quotes_SOLF0:USTF0_20250309
["timestamp","ask_amount","ask_price","bid_price","bid_amount"]
[1741498414425,12.93816324,139.34,139.32,0.05306833]
[1741498417225,38.85816324,139.34,139.32,0.05306833]
[1741498417427,38.85816324,139.34,139.29,30.32]
[1741498417623,12.93816324,139.32,139.29,30.32]
[1741498418028,20.11716324,139.32,139.29,30.32]
[1741498418232,12.93816324,139.32,139.29,30.32]
[1741498418628,12.98845447,139.32,139.29,30.37158503]
[1741498420035,12.93816324,139.3,139.29,30.37158503]
[1741498421535,25.96,139.31,139.29,30.37158503]
[1741498423331,0.05029123,139.32,139.29,30.37158503]
[1741498423537,0.05029123,139.32,139.29,43.30974827]
[1741498423940,0.05029123,139.32,139.3,7.18]
[1741498424239,0.05029123,139.32,139.29,43.30974827]
[1741498424938,12.93816324,139.36,139.31,12.93816324]
[1741498425233,26.04,139.37,139.32,1.9598]
[1741498426138,7.23193527,139.36,139.33,0.05315214]
[1741498426742,0.05493527,139.36,139.33,0.05315214]
[1741498426937,7.23213527,139.36,139.33,0.05315214]
[1741498429043,0.05493527,139.36,139.33,0.05315214]
[1741498430434,7.23193527,139.36,139.33,0.05315214]
[1741498430634,20.23314007,139.35,139.33,0.05315214]
[1741498431042,25.98,139.34,139.33,0.05315214]
[1741498433245,33.1579,139.34,139.33,0.05315214]
[1741498433846,25.98,139.34,139.32,19.19]
[1741498434147,27.41154007,139.33,139.32,19.19]
[1741498435347,20.23314007,139.33,139.31,1.04647383]
[1741498435643,20.23314007,139.33,139.25,39.21426434]
[1741498435849,20.23314007,139.3,139.25,39.21426434]
[1741498436143,33.1408,139.29,139.25,39.21426434]
[1741498436349,33.1408,139.29,139.24,3.9538]
[1741498436648,7.23462761,139.28,139.26,0.05421617]
[1741498437051,0.05322761,139.28,139.26,0.05421617]
[1741498439350,7.23432761,139.28,139.26,0.05421617]
[1741498439544,0.05322761,139.28,139.26,0.05421617]
[1741498440949,7.1815,139.27,139.26,0.05421617]
[1741498441251,0.05322761,139.28,139.26,0.05421617]
[1741498441452,7.23452761,139.28,139.26,0.05421617]
[1741498441946,0.05322761,139.28,139.26,0.05421617]
[1741498442648,7.23442761,139.28,139.26,0.05421617]
[1741498445647,0.05322761,139.28,139.26,0.05421617]
[1741498446049,7.23432761,139.28,139.26,0.05421617]
[1741498446352,0.05322761,139.28,139.26,0.05421617]
[1741498446851,7.23442761,139.28,139.26,0.05421617]
[1741498447249,20.20030856,139.28,139.26,0.05421617]
[1741498448049,7.1815,139.27,139.26,0.05421617]
[1741498453356,38.85910856,139.28,139.26,0.05421617]
[1741498454854,13.01910856,139.28,139.26,0.05421617]
[1741498455657,7.1815,139.27,139.26,0.05421617]
[1741498458957,13.01910856,139.28,139.26,0.05421617]
[1741498460158,0.05322761,139.28,139.27,7.1815]
[1741498460350,38.70588095,139.34,139.27,12.96588095]
[1741498460555,38.70588095,139.34,139.27,16.99718095]
[1741498460957,38.70588095,139.34,139.28,7.1807]
[1741498461457,0.05270826,139.32,139.3,0.05034936]
[1741498462164,25.88,139.36,139.31,20.14538095]
[1741498462863,12.96588095,139.37,139.33,7.1781]
[1741498463466,0.0482316,139.36,139.34,0.04980215]
[1741498464666,0.0482316,139.36,139.34,7.22760215]
[1741498465459,0.0482316,139.36,139.34,0.04980215]
[1741498466060,0.0482316,139.36,139.34,7.22720215]
[1741498466366,0.0482316,139.36,139.34,0.04980215]
[1741498466567,0.0482316,139.36,139.35,7.1774]
[1741498467160,0.0482316,139.36,139.34,0.04980215]
[1741498467356,0.0482316,139.36,139.34,7.22760215]
[1741498467766,0.0482316,139.36,139.34,0.04980215]
[1741498469567,0.0482316,139.36,139.35,7.1774]
[1741498471665,12.96588095,139.4,139.39,7.1754]
[1741498471863,12.96588095,139.4,139.35,14.97798095]
[1741498472275,12.96588095,139.38,139.34,25.84]
[1741498472570,38.82588095,139.38,139.31,38.82588095]
[1741498472767,0.04719379,139.37,139.35,0.05292318]
[1741498476073,0.04719379,139.37,139.35,13.01880413]
[1741498476476,0.04719379,139.37,139.36,7.1769]
[1741498477468,0.04719379,139.37,139.35,22.15460413]
[1741498477673,0.04719379,139.37,139.35,14.97730413]
[1741498478272,0.04719379,139.37,139.35,2.01142318]
[1741498480676,0.04719379,139.37,139.36,7.1769]
[1741498481273,0.04719379,139.37,139.35,22.15450413]
[1741498481480,0.04719379,139.37,139.35,14.97730413]
[1741498481974,0.04719379,139.37,139.36,7.1769]
[1741498482776,38.78588095,139.42,139.38,7.1759]
[1741498482976,38.78588095,139.42,139.37,12.96588095]
[1741498483179,12.96588095,139.42,139.37,12.96588095]
[1741498483983,0.046155,139.41,139.38,0.05173304]
[1741498484577,7.220555,139.41,139.38,0.05173304]
[1741498484977,0.046155,139.41,139.38,0.05173304]
[1741498486281,7.220755,139.41,139.38,0.05173304]
[1741498487078,7.175,139.4,139.38,0.05173304]
[1741498487784,7.1754,139.39,139.38,0.05173304]
[1741498489281,32.9554,139.39,139.38,3.304e-05]
[1741498490884,7.1774,139.35,139.34,28.44]
[1741498491078,45.90328095,139.35,139.34,28.44]
[1741498491979,38.72588095,139.35,139.34,28.44]
[1741498492576,7.1798,139.31,139.26,39.21426434]
[1741498492780,12.96588095,139.3,139.26,39.21426434]
[1741498493885,0.04608192,139.29,139.27,0.0467077]
[1741498495178,12.96588095,139.34,139.28,12.96588095]
[1741498495786,12.96588095,139.34,139.28,43.04588095]
[1741498496288,0.04883014,139.32,139.3,0.04526637]
[1741498497292,13.01471109,139.32,139.3,0.04526637]
[1741498497788,33.0995,139.31,139.3,0.04526637]
[1741498501588,13.01471109,139.32,139.3,0.04526637]
[1741498502090,0.04883014,139.32,139.3,0.04526637]
[1741498503696,0.04883014,139.32,139.3,7.22506637]
[1741498504904,0.04883014,139.32,139.3,0.04526637]
[1741498505496,0.04883014,139.32,139.31,7.1795]
[1741498506197,0.04883014,139.32,139.3,20.19094732]
[1741498506801,0.04883014,139.32,139.3,13.01114732]
[1741498507002,0.04883014,139.32,139.31,7.1795]
[1741498509704,0.04883014,139.32,139.3,0.04526637]
[1741498509900,7.22793014,139.32,139.3,0.04526637]
[1741498510706,20.14538095,139.31,139.3,0.04526637]
[1741498511406,12.96588095,139.31,139.3,0.04526637]
[1741498511900,12.96588095,139.31,139.24,39.21426434]
[1741498512095,12.96588095,139.27,139.24,39.21426434]
[1741498512299,38.86588095,139.27,139.24,39.21426434]
[1741498512498,7.1824,139.26,139.24,39.21426434]
[1741498512999,12.96588095,139.25,139.24,39.2636659]
[1741498513203,27.45519291,139.25,139.24,39.2636659]
[1741498514198,20.27259291,139.25,139.24,39.2636659]
[1741498514398,20.27259291,139.25,139.24,0.04940156]
[1741498514701,20.27259291,139.25,139.22,13.14]
[1741498514895,25.9,139.24,139.22,13.14]
[1741498515307,20.27259291,139.23,139.22,13.14]
[1741498515700,27.45619291,139.23,139.22,13.14]
[1741498516300,7.1841,139.22,139.21,16.83868931]
[1741498516503,7.1841,139.22,139.21,1.9691365]
[1741498517794,20.32522043,139.23,139.21,1.9691365]
[1741498518001,25.95262752,139.23,139.21,1.9691365]
[1741498518300,46.22522043,139.23,139.21,1.9691365]
[1741498518500,7.1841,139.22,139.21,1.9691365]
[1741498518898,46.22522043,139.23,139.15,5.7675]
[1741498519100,20.27259291,139.21,139.15,3.9065]
[1741498519307,26.0,139.2,139.15,1.9251]
[1741498519511,20.27259291,139.19,139.16,17.69]
[1741498520307,7.1867,139.17,139.16,17.74471162]
[1741498520509,53.47929291,139.17,139.16,14.65281162]
[1741498520803,53.47929291,139.17,139.1,64.14258304]
[1741498520804,46.29259291,139.17,139.1,64.14258304]
[1741498521008,7.1886,139.14,139.1,64.14258304]
[1741498521204,33.2086,139.14,139.1,64.14258304]
[1741498521609,7.1891,139.13,139.1,64.14258304]
[1741498521811,20.27259291,139.13,139.1,64.14258304]
[1741498522007,20.31791819,139.13,139.1,0.0472158]
[1741498522201,7.1898,139.11,139.1,0.0472158]
[1741498522408,26.02,139.11,139.1,0.0472158]
[1741498523206,0.04532528,139.13,139.1,0.0472158]
[1741498523403,7.23412528,139.13,139.1,0.0472158]
[1741498523810,0.04532528,139.13,139.1,0.0472158]
[1741498525115,0.04532528,139.13,139.1,7.2374158]
[1741498526110,0.04532528,139.13,139.1,0.0472158]
[1741498527513,0.04532528,139.13,139.1,7.2374158]
[1741498528219,0.04532528,139.13,139.11,7.1897]
[1741498528712,0.04532528,139.13,139.1,0.0472158]
[1741498528919,0.04532528,139.13,139.1,7.2374158]
[1741498529817,7.1893,139.12,139.1,0.0472158]
[1741498530617,7.1898,139.11,139.1,0.0472158]
[1741498531522,27.46239291,139.11,139.1,0.0472158]
[1741498531721,7.1908,139.09,139.08,29.16]
[1741498531921,33.2908,139.09,139.08,29.16]
[1741498532117,26.1,139.09,139.08,29.16]
[1741498535528,26.1,139.09,139.08,36.3514]
[1741498536022,26.1,139.09,139.08,29.16]
[1741498536627,46.37259291,139.09,139.08,29.16]
[1741498538223,20.27259291,139.09,139.08,29.16]
[1741498538426,46.35259291,139.09,139.08,29.16]
[1741498538627,53.54339291,139.09,139.08,29.16]
[1741498539230,7.1914,139.08,139.07,0.05525845]
[1741498543027,26.08,139.09,139.07,0.05525845]
[1741498543328,26.04,139.09,139.07,0.05525845]
[1741498544334,7.1914,139.08,139.07,0.05525845]
[1741498545431,26.06,139.08,139.07,0.05525845]
[1741498546334,33.2514,139.08,139.07,0.05525845]
[1741498549733,26.06,139.08,139.07,0.05525845]
[1741498550736,33.2514,139.08,139.07,0.05525845]
[1741498551834,26.06,139.08,139.07,0.05525845]
[1741498552432,33.2514,139.08,139.07,0.05525845]
[1741498552830,7.1914,139.08,139.07,0.05525845]
[1741498553030,26.03466158,139.1,139.07,0.05525845]
[1741498553031,0.05466158,139.1,139.07,0.05525845]
[1741498553231,0.05466158,139.1,139.07,7.24675845]
[1741498554038,0.05466158,139.1,139.07,0.05525845]
[1741498554239,0.05466158,139.1,139.08,7.1913]
[1741498556134,0.05466158,139.1,139.09,7.1908]
[1741498556336,25.96,139.12,139.07,0.05525845]
[1741498556540,20.27259291,139.14,139.07,0.05525845]
[1741498556741,33.1488,139.13,139.09,7.1903]
[1741498557335,25.96,139.13,139.08,3.9376]
[1741498557529,0.05061239,139.12,139.1,0.04957541]
[1741498558034,7.1898,139.11,139.1,0.04957541]
[1741498558940,20.3232053,139.12,139.1,0.04957541]
[1741498559137,0.05061239,139.12,139.1,0.04957541]
[1741498559737,7.24031239,139.12,139.1,0.04957541]
[1741498560236,20.3232053,139.12,139.1,0.04957541]
[1741498560442,7.1898,139.11,139.1,0.04957541]
[1741498561947,27.5126053,139.12,139.1,0.04957541]
[1741498562140,0.05061239,139.12,139.1,0.04957541]
[1741498563239,13.04570001,139.12,139.1,0.04957541]
[1741498563735,0.05061239,139.12,139.1,0.04957541]
[1741498563940,12.99508762,139.14,139.1,0.04957541]
[1741498564644,20.18368762,139.14,139.1,0.04957541]
[1741498564949,0.05157676,139.13,139.1,0.04957541]
[1741498566440,7.24047676,139.13,139.1,0.04957541]
[1741498568749,0.05157676,139.13,139.1,7.23947541]
[1741498569653,0.05157676,139.13,139.1,0.04957541]
[1741498571655,7.24037676,139.13,139.1,7.23977541]
[1741498571951,0.05157676,139.13,139.1,7.23977541]
[1741498572853,0.05157676,139.13,139.11,7.1895]
[1741498575059,25.94,139.15,139.14,7.1882]
[1741498575449,20.30039693,139.18,139.14,7.1882]
[1741498575654,25.9,139.17,139.14,7.1882]
[1741498576253,0.0551933,139.17,139.14,7.24032263]
[1741498576859,7.2419933,139.17,139.14,7.24032263]
[1741498577059,7.2419933,139.17,139.14,0.05212263]
[1741498577762,0.0551933,139.17,139.14,0.05212263]
[1741498577963,20.30039693,139.16,139.14,0.05212263]
[1741498578157,25.88,139.15,139.14,0.05212263]
[1741498579458,33.0677,139.15,139.14,0.05212263]
[1741498580565,33.0677,139.15,139.08,17.8176]
[1741498580566,25.88,139.15,139.08,17.8176]
[1741498580861,20.30039693,139.12,139.08,17.8176]
[1741498581059,25.9,139.11,139.08,17.8176]
[1741498581467,7.1907,139.1,139.08,17.8176]
[1741498581762,25.94563166,139.11,139.08,17.86906622]
[1741498582271,7.1906,139.1,139.08,17.86906622]
[1741498582776,25.94563166,139.11,139.08,13.93146622]
[1741498583065,7.1908,139.09,139.08,13.93146622]
[1741498583472,20.30039693,139.1,139.04,2.051]
[1741498583772,7.1929,139.06,139.04,2.051]
[1741498584570,7.24430378,139.06,139.04,2.10429237]
[1741498584875,7.1929,139.05,139.04,0.05329237]
[1741498585278,7.1929,139.05,139.01,80.15220203]
[1741498585279,13.02030072,139.05,139.01,42.65815288]
[1741498585471,13.02030072,139.02,138.98,29.55565239]
[1741498585672,13.02030072,138.99,138.98,29.55565239]
[1741498586080,39.18030072,139.01,138.98,29.55565239]
[1741498586269,13.02030072,139.01,138.98,29.55565239]
[1741498586476,13.06909265,139.01,138.98,29.6033675]
[1741498587374,23.0659,139.02,138.98,29.6033675]
[1741498587579,23.0659,139.02,138.99,1.9441]
[1741498587780,33.3733,139.05,138.99,1.9441]
[1741498588279,7.1934,139.04,138.99,1.9441]
[1741498588473,0.05286449,139.03,139.01,0.05002495]
[1741498591276,7.24726449,139.03,139.01,0.05002495]
[1741498591882,0.05286449,139.03,139.01,0.05002495]
[1741498592078,7.1945,139.02,139.01,0.05002495]
[1741498592880,33.3145,139.02,139.01,0.05002495]
[1741498593676,26.12,139.02,139.01,0.05002495]
[1741498593878,0.05286449,139.03,139.01,0.05002495]
[1741498597084,7.24696449,139.03,139.01,0.05002495]
[1741498597477,0.05286449,139.03,139.01,0.05002495]
[1741498598379,7.24716449,139.03,139.01,0.05002495]
[1741498598577,0.05286449,139.03,139.01,0.05002495]
[1741498599083,0.05286449,139.03,139.01,7.24502495]
[1741498599485,0.05286449,139.03,139.01,0.05002495]
[1741498600685,0.05286449,139.03,139.01,7.24492495]
[1741498601279,0.05286449,139.03,139.01,0.05002495]
[1741498602185,0.05286449,139.03,139.01,7.24492495]
[1741498602378,7.1931,139.05,139.01,7.24492495]
[1741498602578,33.2531,139.05,139.01,7.24492495]
[1741498602785,26.06,139.05,139.02,7.1943]
[1741498603681,26.10941089,139.05,139.02,7.1943]
[1741498605480,33.30231089,139.05,139.02,7.1943]
[1741498605986,27.52337314,139.11,139.01,0.05002495]
[1741498606281,27.52337314,139.11,139.02,20.33347314]
[1741498606485,27.52337314,139.11,139.03,1.8967]
[1741498606877,27.52337314,139.11,139.07,7.1915]
[1741498607079,0.04682902,139.08,139.07,7.1915]
[1741498609691,0.04682902,139.08,139.06,0.04575087]
[1741498610286,7.1919,139.07,139.06,0.04575087]
[1741498612190,20.35700889,139.08,138.99,27.9821]
[1741498612394,7.1936,139.04,138.99,27.9821]
[1741498612694,7.1936,139.04,138.99,1.9221]
[1741498613092,7.1936,139.04,138.99,9.118]
[1741498613496,0.05431452,139.03,139.0,0.05280202]
[1741498613995,0.05431452,139.03,139.0,18.75280202]
[1741498614390,7.24831452,139.03,139.0,18.75280202]
[1741498615096,7.195,139.01,139.0,18.75280202]
[1741498617695,26.02,139.02,139.0,18.75280202]
[1741498618296,26.02,139.02,139.0,25.94790202]
[1741498619595,26.02,139.02,139.01,7.195]
[1741498619802,0.05431452,139.03,139.01,7.195]
[1741498620097,0.05431452,139.03,139.0,18.75280202]
[1741498620294,0.05431452,139.03,139.02,7.1945]
[1741498623498,25.98,139.07,139.0,18.75280202]
[1741498623694,306.3878115,139.1,139.0,39.01017987]
[1741498623895,332.3678115,139.1,139.0,39.01017987]
[1741498624097,270.5505,139.1,139.05,7.1925]
[1741498624701,0.05352873,139.09,139.06,0.0543936]
[1741498625501,0.05352873,139.09,139.08,7.1914]
[1741498626501,0.05352873,139.09,139.07,7.1918]
[1741498627501,0.05352873,139.09,139.06,7.2465936]
[1741498629305,0.05352873,139.09,139.06,18.5643936]
[1741498629695,7.1919,139.07,139.06,18.5643936]
[1741498629899,33.1719,139.07,139.06,18.5643936]
[1741498633406,25.98,139.07,139.06,18.5643936]
[1741498634305,53.48207987,139.07,139.06,18.5643936]
[1741498636411,25.98,139.07,139.06,18.5643936]
[1741498637908,0.05352873,139.09,139.06,18.5643936]
[1741498638708,0.05352873,139.09,139.06,25.7566936]
[1741498639819,0.05352873,139.09,139.07,7.1917]
[1741498640316,0.05352873,139.09,139.06,18.5643936]
[1741498642015,7.24452873,139.09,139.06,18.5643936]
[1741498642611,0.05352873,139.09,139.06,18.5643936]
[1741498644515,7.24452873,139.09,139.06,18.5643936]
[1741498644821,0.05352873,139.09,139.06,18.5643936]
[1741498645016,7.1917,139.08,139.06,18.5643936]
[1741498645219,26.01352873,139.09,139.06,18.5643936]
[1741498645521,7.1917,139.08,139.06,18.5643936]
[1741498646127,33.20452873,139.09,139.06,18.5643936]
[1741498646328,26.01352873,139.09,139.06,18.5643936]
[1741498648829,33.20432873,139.09,139.06,18.5643936]
[1741498649720,7.1916,139.08,139.06,18.5643936]
[1741498649918,26.01352873,139.09,139.06,18.5643936]
[1741498650330,7.1914,139.08,139.06,18.5643936]
[1741498651928,26.01352873,139.09,139.06,18.5643936]
[1741498652132,7.1919,139.07,139.06,18.5643936]
[1741498652329,27.50207987,139.07,139.06,18.5643936]
[1741498652535,27.50207987,139.07,139.06,0.0543936]
[1741498660238,20.3637086,139.09,139.06,0.0543936]
[1741498660436,25.95352873,139.09,139.06,0.0543936]
[1741498662443,7.1919,139.07,139.06,0.0543936]
[1741498664538,27.50207987,139.07,139.06,9.36e-05]
[1741498665336,7.1929,139.05,139.04,2.6073]
[1741498665540,46.21017987,139.05,138.98,1.9288]
[1741498665941,7.195,139.01,138.98,1.9288]
[1741498666447,7.24145892,139.01,138.98,1.97573427]
[1741498667538,7.1955,139.0,138.98,1.97573427]
[1741498667745,20.35663879,139.01,138.98,0.04693427]
[1741498668146,0.04645892,139.01,138.98,0.04693427]
[1741498668641,0.04645892,139.01,138.98,7.24333427]
[1741498670047,0.04645892,139.01,138.99,7.196]
[1741498670646,0.04645892,139.01,138.98,7.24323427]
[1741498671550,0.04645892,139.01,138.99,7.1957]
[1741498672652,0.04645892,139.01,138.98,0.04693427]
[1741498672950,0.04645892,139.01,138.98,7.24343427]
[1741498675352,7.24155892,139.01,138.98,0.04693427]
[1741498675751,0.04645892,139.01,138.98,0.04693427]
[1741498676550,7.24155892,139.01,138.98,0.04693427]
[1741498677046,0.04645892,139.01,138.99,7.1959]
[1741498677244,0.04645892,139.01,138.98,0.04693427]
[1741498677650,0.04645892,139.01,138.98,7.24323427]
[1741498680551,0.04645892,139.01,138.98,0.04693427]
[1741498681352,0.04645892,139.01,139.0,7.1955]
[1741498684358,0.04645892,139.01,138.99,2.0052]
[1741498684650,0.04645892,139.01,138.99,9.201]
[1741498685354,0.04645892,139.01,138.99,2.0052]
[1741498685559,0.04645892,139.01,139.0,7.1955]
[1741498686159,0.04645892,139.01,138.99,9.201]
[1741498687655,0.04645892,139.01,138.99,2.0052]
[1741498687850,7.24175892,139.01,138.98,0.04693427]
[1741498688859,7.24175892,139.01,138.98,7.24333427]
[1741498689056,0.04645892,139.01,138.98,7.24333427]
[1741498691664,0.04645892,139.01,138.99,7.196]
[1741498692860,0.04645892,139.01,138.98,0.04693427]
[1741498693059,0.04645892,139.01,139.0,7.1955]
[1741498695664,25.76,139.04,138.99,13.01095533]
[1741498696056,20.20525533,139.03,138.99,7.1958]
[1741498696462,13.01095533,139.03,138.98,0.04693427]
[1741498696665,0.04720491,139.02,138.98,0.04693427]
[1741498696966,7.24170491,139.02,138.98,0.04693427]
[1741498697166,0.04720491,139.02,138.98,0.04693427]
[1741498699068,0.04720491,139.02,139.0,7.195]
[1741498699264,250.39095533,139.06,138.99,13.01095533]
[1741498699469,25.76,139.05,139.0,1.9758]
[1741498699666,13.01095533,139.04,139.0,1.9758]
[1741498699967,13.01095533,139.04,138.99,13.01095533]
[1741498700469,7.1948,139.02,139.0,0.04952842]
[1741498702172,7.24260489,139.03,139.0,0.04952842]
[1741498703370,7.24260489,139.03,139.0,7.24492842]
[1741498703570,0.04850489,139.03,139.0,7.24492842]
[1741498703963,0.04850489,139.03,139.0,0.04952842]
[1741498704670,0.04850489,139.03,139.02,7.1945]
[1741498710577,25.76,139.06,139.03,7.1936]
[1741498710880,13.01095533,139.05,139.0,27.7853]
[1741498711073,13.01095533,139.05,139.01,7.1949]
[1741498711270,13.01095533,139.05,139.0,27.7853]
[1741498711776,0.04553687,139.04,139.01,0.05435001]
[1741498712281,13.01095533,139.03,139.01,0.05435001]
[1741498712476,38.77095533,139.03,139.01,0.05435001]
[1741498713582,25.76,139.03,139.01,0.05435001]
[1741498714772,38.77095533,139.03,139.01,0.05435001]
[1741498715079,0.04553687,139.04,139.01,0.05435001]
[1741498715580,0.04553687,139.04,139.02,7.1941]
[1741498715777,0.04553687,139.04,139.01,0.05435001]
[1741498715978,0.04553687,139.04,139.03,7.1939]
[1741498716675,0.04553687,139.04,139.01,13.06530534]
[1741498717274,0.04553687,139.04,139.03,7.1939]
[1741498719078,0.04553687,139.04,139.02,7.1943]
[1741498719473,0.04553687,139.04,139.03,7.1939]
[1741498725988,0.04553687,139.04,139.02,9.2325]
[1741498726582,0.04553687,139.04,139.02,2.0383]
[1741498726790,0.04553687,139.04,139.01,59.45020534]
[1741498727289,0.04553687,139.04,139.01,39.24435001]
[1741498727487,0.04553687,139.04,139.01,13.48435001]
[1741498727687,13.01095533,139.03,139.01,13.48435001]
[1741498728085,7.1945,139.02,139.01,13.48435001]
[1741498729394,20.20505533,139.03,139.01,13.48435001]
[1741498730290,13.01095533,139.03,139.01,13.48435001]
[1741498730496,7.1945,139.02,139.01,13.48435001]
[1741498731789,32.9545,139.02,139.01,13.48435001]
[1741498732192,25.76,139.02,139.01,13.48435001]
[1741498733904,0.04553687,139.04,139.01,13.48435001]
[1741498735297,0.04553687,139.04,139.01,20.67935001]
[1741498736204,0.04553687,139.04,139.01,13.48435001]
[1741498736904,7.1939,139.03,139.01,13.48435001]
[1741498738908,7.1945,139.02,139.01,13.48435001]
[1741498743214,7.1945,139.02,139.01,0.05435001]
[1741498746109,13.01095533,139.03,139.01,0.05435001]
[1741498746914,7.1945,139.02,139.01,0.05435001]
[1741498754120,13.01095533,139.03,139.01,0.05435001]
[1741498754721,20.20495533,139.03,139.01,0.05435001]
[1741498755309,7.1945,139.02,139.01,0.05435001]
[1741498756121,32.9545,139.02,139.01,0.05435001]
[1741498757022,25.76,139.02,138.99,11.32]
[1741498757220,20.20645533,139.0,138.99,11.32]
[1741498758324,13.01095533,139.0,138.99,11.32]
[1741498758520,0.05221906,139.01,138.99,11.32]
[1741498759133,0.05221906,139.01,139.0,7.1955]
[1741498759931,0.05221906,139.01,138.99,18.5158]
[1741498761428,0.05221906,139.01,138.99,11.32]
[1741498762227,13.01095533,139.06,139.0,13.01095533]
[1741498762429,38.77095533,139.06,139.0,13.01095533]
[1741498762627,38.77095533,139.06,139.0,14.98155533]
[1741498762827,7.1933,139.05,139.01,7.1949]
[1741498763434,0.04631227,139.04,139.02,0.05316793]
[1741498765640,0.04631227,139.04,139.02,7.24716793]
[1741498765840,0.04631227,139.04,139.02,0.05316793]
[1741498766140,0.04631227,139.04,139.03,7.1939]
[1741498766643,0.04631227,139.04,139.02,0.05316793]
[1741498767543,0.04631227,139.04,139.02,7.24746793]
[1741498767943,0.04631227,139.04,139.02,0.05316793]
[1741498769444,0.04631227,139.04,139.03,7.1939]
[1741498770443,0.04631227,139.04,139.02,7.24746793]
[1741498775647,0.04631227,139.04,139.02,0.05316793]
[1741498776347,13.0572676,139.04,139.02,0.05316793]
[1741498777043,7.1939,139.03,139.02,0.05316793]
[1741498777547,20.2508676,139.04,139.02,0.05316793]
[1741498777752,13.0572676,139.04,139.02,0.05316793]
[1741498777948,0.04631227,139.04,139.02,0.05316793]
[1741498778350,0.04631227,139.04,139.03,7.1939]
[1741498779351,0.04631227,139.04,139.02,0.05316793]
[1741498779558,0.04631227,139.04,139.02,7.24736793]
[1741498780350,0.04631227,139.04,139.02,0.05316793]
[1741498781658,7.23971227,139.04,139.02,0.05316793]
[1741498782655,0.04631227,139.04,139.02,0.05316793]
[1741498782960,7.1939,139.03,139.02,0.05316793]
[1741498797063,7.195,139.01,139.0,11.55]
[1741498797269,38.75095533,139.01,138.93,5.8474]
[1741498797469,13.01095533,138.97,138.93,5.8474]
[1741498798169,13.01095533,138.97,138.93,13.0465]
[1741498798468,0.05430325,138.96,138.94,0.05135144]
[1741498802072,25.76,138.95,138.94,0.05135144]
[1741498802973,38.77095533,138.95,138.94,0.05135144]
[1741498803266,45.96905533,138.95,138.94,0.05135144]
[1741498804567,38.77095533,138.95,138.94,0.05135144]
[1741498805172,45.96905533,138.95,138.94,0.05135144]
[1741498808375,38.77095533,138.95,138.94,0.05135144]
[1741498808969,45.96905533,138.95,138.94,0.05135144]
[1741498809280,38.77095533,138.95,138.94,0.05135144]
[1741498813385,45.96905533,138.95,138.94,0.05135144]
[1741498814385,25.76,138.95,138.94,0.05135144]
[1741498814585,38.77095533,138.95,138.94,0.05135144]
[1741498814981,45.96905533,138.95,138.94,0.05135144]
[1741498820294,7.1996,138.92,138.91,12.31]
[1741498820494,45.97055533,138.92,138.91,12.31]
[1741498824101,7.2002,138.91,138.9,0.05025238]
[1741498829902,45.97075533,138.92,138.9,0.05025238]
[1741498830401,38.77095533,138.92,138.9,0.05025238]
[1741498830791,7.2002,138.91,138.9,0.05025238]
[1741498831599,32.9602,138.91,138.9,0.05025238]
[1741498832504,13.06201631,138.93,138.9,7.25085238]
[1741498832701,38.82201631,138.93,138.9,7.25085238]
[1741498832902,25.81106098,138.93,138.9,7.25085238]
[1741498833097,25.81106098,138.93,138.9,0.05025238]
[1741498833303,25.81106098,138.93,138.91,7.2]
[1741498834102,25.81106098,138.93,138.9,7.25065238]
[1741498834503,13.01095533,138.92,138.9,0.05025238]
[1741498836509,13.01095533,138.92,138.9,7.25075238]
[1741498836704,13.01095533,138.92,138.9,0.05025238]
[1741498837208,13.01095533,138.92,138.91,7.2002]
[1741498839310,13.01095533,138.92,138.9,0.05025238]
[1741498840513,7.2002,138.91,138.9,0.05025238]
[1741498847216,20.21065533,138.92,138.9,0.05025238]
[1741498847406,13.01095533,138.92,138.9,0.05025238]
[1741498848313,20.21105533,138.92,138.9,0.05025238]
[1741498848516,13.01095533,138.92,138.9,0.05025238]
[1741498849004,7.2002,138.91,138.9,0.05025238]
[1741498851510,13.01095533,138.92,138.84,3.8004]
[1741498851712,13.01095533,138.87,138.84,3.8004]
[1741498852414,20.21315533,138.87,138.84,3.8004]
[1741498852615,20.21315533,138.87,138.83,7.2041]
[1741498852916,20.26502808,138.87,138.84,0.05134333]
[1741498853517,20.26502808,138.87,138.84,0.53134333]
[1741498855017,7.2028,138.86,138.84,0.53134333]
[1741498856621,20.26522808,138.87,138.84,0.53134333]
[1741498858320,13.06282808,138.87,138.84,7.73484333]
[1741498859920,13.06282808,138.87,138.85,7.2032]
[1741498860312,13.06282808,138.87,138.84,0.53134333]
[1741498860919,20.26532808,138.87,138.84,7.73484333]